[Event "1st Bella Italia International 2022"]
[Site "Lignano"]
[Date "2022.08.20"]
[Round "5.19"]
[White "Perossa, Nicolas"]
[Black "Sala, Giulia"]
[Result "1/2-1/2"]
[ECO "B31"]
[WhiteElo "2107"]
[BlackElo "1958"]
[Annotator "TA"]
[PlyCount "134"]
[EventDate "2022.08.18"]
[EventCountry "ITA"]
[SourceTitle "playchess.com"]
[Source "ChessBase"]
[SourceQuality "1"]
[TimeControl "5400+30"]

{[%evp 11,134,27,14,-26,-20,-53,-45,-50,-51,-49,-22,-22,-16,-29,-51,-59,-44,-57,-42,-64,-56,-49,-43,-43,-43,-36,-46,-31,-13,-27,-34,-35,-24,-51,0,0,0,-22,-29,-55,-57,-70,-87,-100,-96,-87,-71,-125,-120,-118,-120,-120,0,-34,-40,-40,-18,-37,-39,-41,-45,-45,-10,-10,0,-12,0,-24,0,-95,0,-12,0,0,0,-12,0,0,0,-12,0,-160,-144,-134,-34,-27,-27,-69,-69,-89,-31,-84,-62,-59,-8,-8,0,-53,0,-21,0,0,0,0,0,0,0,0,0,0,0,0,22,0,0,0,0,0,0,0,0,0,0,0,0]} 1. e4 {[%emt 0:00:01]} c5 {[%emt 0:00:05]} 2. Nf3 {[%emt 0:00:13]} Nc6 {[%emt 0:00:02]} 3. Bb5 {[%emt 0:00:11]} g6 {[%emt 0:00:11]} 4. O-O {[%emt 0:00:16]} Bg7 {[%emt 0:00:01]} 5. Re1 {[%emt 0:00:09]} Nf6 {[%emt 0:00:09]} 6. e5 {[%emt 0:01:50]} Nd5 {[%emt 0:06:50][%cal Bf6d5,Bd5c7,Bc7e6][%mdl 32]} 7. c4 {[%emt 0:00:13] B31: Sicilian: 2...Nc6 3 Bb5 g6.} Nc7 {[%emt 0:00:28]} 8. Bxc6 {[%emt 0:00:47]} dxc6 {[%emt 0:00:04]} (8... bxc6 9. d4 $11) 9. Nc3 {[%emt 0:00:12] [#] Black is slightly better.} O-O $146 {[%emt 0:00:10]} ({Predecessor:} 9... Bg4 10. d3 Ne6 11. h3 Bxf3 12. Qxf3 O-O 13. Be3 Qxd3 14. Rad1 Qxc4 15. Rd7 Nd4 {0-1 (64) Ingebretsen,J (2266)-Schill,W (2147) Chess.com INT 2021}) 10. Ne4 {[%emt 0:02:40]} Ne6 {[%emt 0:01:19]} 11. d3 {[%emt 0:00:41]} b6 {[%emt 0:05:47]} 12. Be3 {[%emt 0:18:38]} Qc7 {[%emt 0:01:24]} 13. Neg5 {[%emt 0:10:45]} Rd8 {[%emt 0:04:19]} (13... Bxe5 14. Nxe5 Qxe5 15. Nxe6 Bxe6 16. Bh6 Qxb2 17. Bxf8 Kxf8 18. Rb1 Qxa2 19. Qf3 $11) 14. Qe2 {[%emt 0:08:11]} Bxe5 {[%emt 0:06:19]} (14... Nxg5 {with more complications.} 15. Bxg5 Bg4 16. Rad1 Bxf3 17. gxf3 Qc8) 15. Nxe6 {[%emt 0:00:16]} Bxe6 {[%emt 0:00:07] A strong pair of Bishops.} (15... fxe6 16. Bxc5 $1 Bf6 17. Bb4 $14) 16. Bxc5 {[%emt 0:01:02]} Bxh2+ {[%emt 0:03:09]} 17. Nxh2 {[%emt 0:00:11]} bxc5 {[%emt 0:00:07]} 18. Qe3 {[%emt 0:02:49]} Qd6 {[%emt 0:02:47]} 19. Nf3 {[%emt 0:02:11][%cal Bh2f3,Bf3g5,Bg5e4][%mdl 32]} Bg4 {[%emt 0:06:17]} (19... Qxd3 20. Qh6 g5 21. Qxg5+ (21. Nxg5 Bf5 $16) 21... Qg6 22. Qxe7 $16) 20. Ng5 {[%emt 0:37:00]} Rd7 {[%emt 0:15:13]} 21. Ne4 {[%emt 0:02:32][%csl LRc5,LRd6]} Qxd3 {[%emt 0:09:52]} 22. Qg5 {[%emt 0:05:14]} Qd4 {[%emt 0:02:05]} 23. Qxg4 $11 {[%emt 0:01:09]} f5 {[%emt 0:00:04]} 24. Qf3 {[%emt 0:00:22] aiming for Rad1.} fxe4 {[%emt 0:00:39]} 25. Rxe4 {[%emt 0:00:02]} Qxb2 {[%emt 0:00:56]} 26. Rae1 {[%emt 0:00:01]} Rf8 {[%emt 0:04:46]} ({Don't play} 26... Qxa2 27. Qh3 Qd2 28. Qe6+ (28. Rxe7 $2 Rxe7 29. Rxe7 Qd1+ 30. Kh2 Qd6+ 31. g3 Qxe7 $19) 28... Kh8 29. Qe5+ Kg8 30. Qe6+ Kh8 31. Qe5+ Kg8 32. Qe6+ $11) 27. Rf4 {[%emt 0:05:52]} Rxf4 {[%emt 0:03:51]} 28. Qxf4 $17 {[%emt 0:00:01][%mdl 4096] Endgame KQR-KQR} Qd4 {[%emt 0:03:30]} (28... Qxa2 $6 29. Qb8+ Kf7 30. Qh8 Qxc4 31. Qxh7+ Kf6 32. Qh8+ Kf7 33. Qh7+ Kf6 34. Qh8+ Kf7 35. Qh7+ $11) 29. Re4 {[%emt 0:00:59]} (29. Qb8+ $142 Kf7 30. Qc8) 29... Qd1+ {[%emt 0:01:20]} 30. Kh2 {[%emt 0:00:01]} Qh5+ {[%emt 0:00:02]} 31. Kg3 {[%emt 0:00:09]} Qd1 {[%emt 0:03:05]} (31... Rd3+ $17 32. f3 Rd4 33. Rxd4 cxd4 34. Qxd4 Qg5+ 35. Kf2 c5) 32. Qb8+ {[%emt 0:00:31]} Rd8 {[%emt 0:03:12]} 33. Qxa7 {[%emt 0:00:33]} Qd3+ {[%emt 0:03:16]} 34. f3 {[%emt 0:00:13]} Qd6+ {[%emt 0:00:33]} 35. Kh3 {[%emt 0:00:08]} Kf7 {[%emt 0:02:19]} 36. Qa3 {[%emt 0:01:08]} Rb8 {[%emt 0:00:45] And now ...Rb1 would win.} 37. Qc1 {[%emt 0:00:47] Inhibits Rb1.} Ra8 {[%emt 0:01:03]} 38. a3 {[%emt 0:00:48]} Ra7 {[%emt 0:00:53]} 39. Qe3 {[%emt 0:00:25]} Rb7 {[%emt 0:01:29]} 40. Rf4+ {[%emt 0:00:40] [#]} (40. Qh6 $11 {remains equal.}) 40... Kg8 {[%emt 0:00:46]} (40... Ke8 $1 $17 {Hoping for ...Rb1.} 41. Re4 Rb1) 41. Re4 $11 {[%emt 0:00:36]} Kf7 $36 {[%emt 0:00:45][%mdl 2048] Black is more active.} 42. Qh6 {[%emt 0:00:30]} Kg8 {[%emt 0:01:09]} 43. Qe3 {[%emt 0:00:06]} ({Of course not} 43. Rf4 Qd8 $15) 43... Kf7 {[%emt 0:03:48]} 44. Qh6 {[%emt 0:00:18]} Kg8 {[%emt 0:00:29]} 45. Qe3 {[%emt 0:00:05]} ({Much weaker is} 45. Rf4 Qd8 $15) 45... Ra7 {[%emt 0:04:19]} 46. Re5 $2 {[%emt 0:00:54] [#]} ({White should try} 46. Re6 $11 Qd7 47. Kg3) 46... Rxa3 $3 $17 {[%emt 0:01:15][%mdl 512]} 47. Qxc5 {[%emt 0:01:01]} Qxc5 {[%emt 0:00:17]} (47... Kf7 $17 48. Qxd6 exd6) 48. Rxc5 {[%emt 0:00:01] KR-KR} Ra6 {[%emt 0:00:11]} 49. Re5 {[%emt 0:01:02]} Kf7 {[%emt 0:00:10]} 50. Kg3 {[%emt 0:00:23]} Kf6 {[%emt 0:00:09]} (50... e6 $17 51. Kh4 Ke7) 51. f4 {[%emt 0:00:13]} ({Better is} 51. Kf4 $15) 51... h6 {[%emt 0:00:49]} 52. Kf3 {[%emt 0:00:38]} Ra8 {[%emt 0:02:06]} (52... e6 $15) 53. Rc5 $11 {[%emt 0:00:44]} Ra6 {[%emt 0:00:27]} 54. Re5 $1 {[%emt 0:00:06]} g5 {[%emt 0:01:37]} (54... e6 $15) 55. g3 {[%emt 0:00:13] The position is equal.} Rb6 {[%emt 0:00:34]} 56. Rc5 {[%emt 0:00:31]} Rb3+ {[%emt 0:00:36]} 57. Kg4 {[%emt 0:00:25]} gxf4 {[%emt 0:00:01] White must now prevent ...f3.} 58. Rxc6+ {[%emt 0:00:12]} Kg7 {[%emt 0:00:21] Threatens to win with ...f3.} 59. Kxf4 {[%emt 0:00:47]} Rc3 {[%emt 0:00:09]} 60. g4 {[%emt 0:00:28]} Rc1 {[%emt 0:00:06]} 61. c5 {[%emt 0:00:58]} Rc2 {[%emt 0:00:22]} 62. Rc7 {[%emt 0:00:40]} Kf6 {[%emt 0:00:02]} 63. Rc6+ {[%emt 0:00:21]} e6 {[%emt 0:00:19]} 64. Rc8 {[%emt 0:00:21]} Rc4+ {[%emt 0:00:22]} 65. Kg3 {[%emt 0:00:53]} Kg5 {[%emt 0:00:18]} 66. Rg8+ {[%emt 0:00:26]} Kf6 {[%emt 0:00:07]} 67. Rc8 {[%emt 0:00:06]} Ke5 {[%emt 0:00:54] Weighted Error Value: White=0.18 (very precise) /Black=0.20 (precise)} 1/2-1/2

[Event "1st Bella Italia International 2022"]
[Site "Lignano"]
[Date "2022.08.20"]
[Round "5.20"]
[White "Marson, Roy"]
[Black "Cristiani, Cesare"]
[Result "1-0"]
[ECO "C00"]
[WhiteElo "1959"]
[BlackElo "2006"]
[Annotator "NA RC"]
[PlyCount "75"]
[EventDate "2022.08.18"]
[EventCountry "ITA"]
[SourceTitle "playchess.com"]
[Source "ChessBase"]
[SourceQuality "1"]
[TimeControl "5400+30"]

1. e4 {[%emt 0:00:04]} e6 {[%emt 0:03:43]} 2. d3 {[%emt 0:00:09]} d5 {[%emt 0:00:09]} 3. Nd2 {[%emt 0:00:13]} Nf6 {[%emt 0:00:10]} 4. g3 {[%emt 0:01:16]} b6 {[%emt 0:02:53]} 5. Bg2 {[%emt 0:00:45]} Bb7 {[%emt 0:00:09]} 6. e5 {[%emt 0:08:28]} Nfd7 {[%emt 0:01:00]} 7. f4 {[%emt 0:01:20]} c5 {[%emt 0:05:58]} 8. c3 {[%emt 0:02:16]} Qc7 {[%emt 0:01:20]} 9. Ngf3 {[%emt 0:01:04]} Be7 {[%emt 0:02:35]} 10. O-O {[%emt 0:01:46]} Nc6 {[%emt 0:04:03]} 11. Re1 {[%emt 0:03:46]} g6 {[%emt 0:06:21]} 12. Nf1 {[%emt 0:04:37]} h5 {[%emt 0:00:47]} 13. a3 {[%emt 0:10:28]} c4 {[%emt 0:03:06]} 14. Ne3 {[%emt 0:15:42]} Na5 {[%emt 0:00:36]} 15. d4 {[%emt 0:04:34]} O-O-O {[%emt 0:06:30]} 16. Nd2 {[%emt 0:03:13]} Kb8 {[%emt 0:09:25]} 17. Qc2 {[%emt 0:03:45]} Rc8 {[%emt 0:00:35]} 18. Nd1 {[%emt 0:03:01]} Bc6 {[%emt 0:06:55]} 19. a4 {[%emt 0:01:51]} h4 {[%emt 0:01:18]} 20. b4 {[%emt 0:01:45]} cxb3 {[%emt 0:00:47]} 21. Nxb3 {[%emt 0:00:18]} hxg3 {[%emt 0:02:44]} 22. hxg3 {[%emt 0:00:10]} Ka8 {[%emt 0:00:57]} 23. Ne3 {[%emt 0:04:39]} Bb7 {[%emt 0:00:33]} 24. Nxa5 {[%emt 0:05:05]} bxa5 {[%emt 0:00:09]} 25. Ba3 {[%emt 0:02:30]} Nb6 {[%emt 0:03:53]} 26. Bxe7 {[%emt 0:05:29]} Qxe7 {[%emt 0:00:10]} 27. Reb1 {[%emt 0:00:32]} Qc7 {[%emt 0:04:04]} 28. Ra3 {[%emt 0:02:20]} Nc4 {[%emt 0:03:41]} 29. Nxc4 {[%emt 0:01:57]} Qxc4 {[%emt 0:00:09]} 30. Qb2 {[%emt 0:01:36]} Qc7 {[%emt 0:01:34]} 31. c4 {[%emt 0:01:29]} Rb8 {[%emt 0:02:06]} 32. Rb3 {[%emt 0:01:14]} Bc6 {[%emt 0:00:09]} 33. cxd5 {[%emt 0:01:19]} exd5 {[%emt 0:00:46]} 34. Rc1 {[%emt 0:01:08]} Qd7 {[%emt 0:00:45]} 35. Qa2 {[%emt 0:02:05]} Rxb3 {[%emt 0:00:58]} 36. Qxb3 {[%emt 0:00:45]} Rd8 {[%emt 0:00:10]} 37. Qc3 {[%emt 0:00:57]} Bxa4 {[%emt 0:01:03]} 38. Qxa5 {[%emt 0:00:05]} 1-0

[Event "1st Bella Italia International 2022"]
[Site "Lignano"]
[Date "2022.08.20"]
[Round "6.1"]
[White "Visakh N R"]
[Black "Lumachi, Gabriele"]
[Result "1-0"]
[ECO "E05"]
[WhiteElo "2503"]
[BlackElo "2355"]
[Annotator "TA"]
[PlyCount "67"]
[EventDate "2022.08.18"]
[EventCountry "ITA"]
[SourceTitle "playchess.com"]
[Source "ChessBase"]
[SourceQuality "1"]
[TimeControl "5400+30"]

{[%evp 13,67,0,0,31,1,0,32,26,22,15,37,66,79,74,38,68,51,58,52,52,52,67,44,54,195,188,195,188,222,229,213,214,233,204,215,211,214,208,264,255,283,213,229,221,300,14,300,300,492,493,471,468,568,565,922,921]} 1. d4 {[%emt 0:00:01]} d5 {[%emt 0:03:58]} 2. c4 {[%emt 0:00:29]} e6 {[%emt 0:00:06]} 3. Nf3 {[%emt 0:00:18]} Nf6 {[%emt 0:00:10]} 4. g3 {[%emt 0:00:06]} Be7 {[%emt 0:01:27]} 5. Bg2 {[%emt 0:00:07]} O-O {[%emt 0:00:07]} 6. O-O {[%emt 0:00:03]} dxc4 {[%emt 0:00:18]} 7. Qc2 {[%emt 0:00:05]} b5 {[%emt 0:00:22]} 8. a4 {[%emt 0:00:19] E05: Open Catalan: 5 Nf3 Be7.} b4 {[%emt 0:00:10]} 9. Nfd2 {[%emt 0:00:29]} Nd5 {[%emt 0:00:18]} 10. Nxc4 {[%emt 0:00:07] White is slightly better.} c5 {[%emt 0:00:41]} 11. dxc5 {[%emt 0:00:10]} Bxc5 {[%emt 0:00:09]} 12. e4 {[%emt 0:00:26]} Nb6 {[%emt 0:00:37]} 13. Ncd2 $36 {[%emt 0:00:09][%mdl 2048] White is really pushing.} N8d7 {[%emt 0:02:16] White must now prevent ...Ba6.} 14. a5 {[%emt 0:00:28]} Ba6 {[%emt 0:01:08][%cal Oa8c8] And now ...Rc8! would win.} 15. axb6 {[%emt 0:00:03]} Rc8 {[%emt 0:00:37][%cal Oc5f2] aiming for ...Bxf2+!} 16. Qd1 $1 {[%emt 0:00:02]} Qxb6 {[%emt 0:02:30] [#]} 17. Nb3 $1 {[%emt 0:01:46]} Bxf1 {[%emt 0:12:19]} 18. Qxf1 {[%emt 0:00:09] [#]} Rc7 $146 {[%emt 0:04:00]} (18... h6 $14) ({Predecessor:} 18... h6 19. Nxc5 Qxc5 20. Nd2 Nb6 21. Nb3 Qc2 22. Nd4 Qc5 23. Nb5 Nc4 24. Nxa7 Rcd8 {½-½ (68) Pechac,J (2599)-Parkhov,Y (2450) Terme Catez 2022}) 19. N1d2 $18 {[%emt 0:11:58][%cal Bb1d2,Bd2f3,Bf3e5,Be5c4][%mdl 32]} h6 {[%emt 0:02:13]} 20. Nf3 {[%emt 0:02:51]} a5 {[%emt 0:14:34]} 21. Bf4 {[%emt 0:03:53]} (21. Nxa5 Ra8 22. Bf4 (22. Nc4 $2 Bxf2+ 23. Qxf2 Qxf2+ 24. Kxf2 Rxa1 $19) 22... Rxa5 23. Rxa5 Qxa5 24. Bxc7 Qxc7 $17) 21... Ra7 {[%emt 0:03:09]} 22. Nxc5 {[%emt 0:09:59]} Nxc5 {[%emt 0:00:06]} 23. Be3 {[%emt 0:02:39]} Rc8 {[%emt 0:03:51]} 24. Ne5 {[%emt 0:02:10]} Qc7 {[%emt 0:11:31] [#]} 25. Nc4 {[%emt 0:16:39]} Nb3 {[%emt 0:07:54] [#]} 26. Rd1 {[%emt 0:03:41][%cal Ba1d1,Bd1d8,Bd8a8,Ba8a5][%mdl 32]} Qxc4 {[%emt 0:12:08]} (26... a4 27. Nd6) 27. Qxc4 {[%emt 0:14:43]} ({Less strong is} 27. Bxa7 Qc2 $16) 27... Rxc4 {[%emt 0:00:04]} 28. Bxa7 {[%emt 0:06:17] Strongly threatening Rd8+.} a4 {[%emt 0:04:19]} 29. Rd8+ {[%emt 0:02:05]} Kh7 {[%emt 0:00:12] Threatens to win with ...a3.} 30. Be3 {[%emt 0:00:57]} Na5 $2 {[%emt 0:06:48]} (30... Rc2) 31. Bf1 {[%emt 0:01:27] Ra8 is the strong threat. White is clearly winning.} Rc2 {[%emt 0:00:06]} 32. Ra8 {[%emt 0:00:15]} a3 {[%emt 0:00:30]} 33. bxa3 {[%emt 0:00:20]} ({Don't go for} 33. Rxa5 $2 axb2 34. Bd4 b1=Q $19) 33... b3 {[%emt 0:00:16]} 34. Rxa5 {[%emt 0:00:07] Weighted Error Value: White=0.01 (flawless) /Black=0.35} 1-0

[Event "1st Bella Italia International 2022"]
[Site "Lignano"]
[Date "2022.08.20"]
[Round "6.2"]
[White "Ghosh, Diptayan"]
[Black "Sonis, Francesco"]
[Result "1-0"]
[ECO "A47"]
[WhiteElo "2538"]
[BlackElo "2543"]
[Annotator "TA"]
[PlyCount "95"]
[EventDate "2022.08.18"]
[EventCountry "ITA"]
[SourceTitle "playchess.com"]
[Source "ChessBase"]
[SourceQuality "1"]
[TimeControl "5400+30"]

{[%evp 16,95,32,9,16,15,14,10,12,11,22,20,23,4,17,0,6,0,6,0,42,0,15,21,29,6,38,28,54,32,75,76,78,80,191,-8,-10,-8,261,229,611,779,844,827,1040,955,5414,5381,2746,824,1073,791,900,521,527,506,510,509,496,478,394,394,727,573,4387,2821,4810,4802,6240,6198,6178,6179,6179,6179,6164,6031,5527,5311,5449,5347,1736,972]} 1. d4 {[%emt 0:00:56]} Nf6 {[%emt 0:01:33]} 2. Nf3 {[%emt 0:00:16]} e6 {[%emt 0:00:34]} 3. Bf4 {[%emt 0:00:20]} b6 {[%emt 0:01:05]} 4. e3 {[%emt 0:00:18]} Be7 {[%emt 0:00:23]} 5. h3 {[%emt 0:00:22]} Bb7 {[%emt 0:00:58]} 6. Nbd2 {[%emt 0:00:08]} c5 {[%emt 0:00:55]} 7. c3 {[%emt 0:01:02]} O-O {[%emt 0:00:25]} 8. Bd3 {[%emt 0:00:06]} cxd4 {[%emt 0:00:12]} 9. exd4 {[%emt 0:00:04]} Ba6 {[%emt 0:01:01] A47: 1 d4 Nf6 2 Nf3 b6: Torre, London and Colle Systems.} 10. Bxa6 {[%emt 0:01:50]} Nxa6 {[%emt 0:00:05]} 11. Qe2 {[%emt 0:00:32]} Qc8 {[%emt 0:00:30] The position is equal.} 12. O-O {[%emt 0:03:07]} d6 {[%emt 0:02:26]} 13. a4 {[%emt 0:03:16]} Nc7 {[%emt 0:00:10]} 14. Rfe1 {[%emt 0:02:46]} Qb7 {[%emt 0:01:02] [#]} 15. Nc4 $146 {[%emt 0:03:24][%cal Bd2c4,Bc4e3,Be3g4][%mdl 32]} ({Predecessor:} 15. Bh2 h6 16. c4 d5 17. b3 Na6 18. a5 Rfd8 19. Rec1 Ne4 20. Nf1 Bb4 21. axb6 axb6 22. cxd5 {½-½ (48) Arnaudov,P (2441)-Kazakovskiy,V (2420) Antalya 2017}) 15... Rfd8 {[%emt 0:00:57]} 16. Ne3 {[%emt 0:00:12]} h6 {[%emt 0:08:55]} 17. c4 {[%emt 0:04:35]} a5 {[%emt 0:01:19]} 18. Ng4 {[%emt 0:04:54]} (18. d5 $5) 18... Nce8 {[%emt 0:13:48]} 19. d5 {[%emt 0:03:30]} e5 {[%emt 0:00:27]} 20. Bd2 {[%emt 0:00:15]} Bf8 {[%emt 0:00:52]} 21. Nh4 {[%emt 0:02:18]} Qd7 {[%emt 0:12:33]} 22. Ra3 {[%emt 0:03:58][%cal Ba1a3,Ba3h3,Bh3h6][%mdl 32]} Nxg4 {[%emt 0:03:24]} 23. hxg4 {[%emt 0:01:07]} ({Much worse is} 23. Qxg4 Qxg4 24. hxg4 Rdc8 $11) 23... g6 {[%emt 0:00:04]} 24. Rh3 {[%emt 0:12:26] White is more active.} Qxa4 {[%emt 0:11:24]} (24... Bg7 $16 {might work better.}) 25. Nf5 $2 {[%emt 0:05:05]} gxf5 $11 {[%emt 0:21:19]} 26. gxf5 {[%emt 0:00:09]} Nf6 $2 {[%emt 0:00:35][%mdl 8192] This costs Black the game.} (26... Qc2 $1 $11 {and Black is okay.} 27. Rg3+ Kh8) 27. Bxh6 $18 {[%emt 0:01:52] White threatens Qe3 and mate.} Bxh6 {[%emt 0:00:02]} (27... Qd7) 28. Rxh6 {[%emt 0:00:05] Intending Qe3 and mate.} Kf8 {[%emt 0:00:02]} 29. Rxf6 {[%emt 0:04:09] Hoping for Qg4.} Kg7 {[%emt 0:00:07] [#]} 30. Re6 $3 {[%emt 0:00:38][%mdl 512] Qg4+ would kill now.} fxe6 {[%emt 0:02:50]} (30... Rh8 31. Rxd6) 31. Qg4+ {[%emt 0:01:00]} Kf8 {[%emt 0:00:29]} 32. f6 {[%emt 0:01:47]} (32. Re3 $142 Qd7 33. fxe6) 32... Rd7 {[%emt 0:03:59]} 33. dxe6 {[%emt 0:00:09]} Rh7 {[%emt 0:00:53]} 34. Qg6 {[%emt 0:04:00]} Raa7 {[%emt 0:00:08]} 35. e7+ {[%emt 0:05:10]} Raxe7 {[%emt 0:00:05]} 36. fxe7+ {[%emt 0:00:04][%mdl 64] Discovered Attack} Rxe7 {[%emt 0:00:06]} 37. Qxd6 {[%emt 0:00:14]} Qxc4 {[%emt 0:00:05]} 38. Qxb6 {[%emt 0:00:42][%mdl 4096] Endgame KQR-KQR} ({Don't blunder} 38. Rxe5 $2 Qc1+ 39. Kh2 Qf4+ 40. Kh3 Qxe5 $19) 38... Qd5 $2 {[%emt 0:00:29]} (38... Qc7 39. Qf6+ Kg8) 39. Qf6+ {[%emt 0:01:57] White is clearly winning.} Ke8 {[%emt 0:02:32]} 40. Rc1 {[%emt 0:00:11]} e4 {[%emt 0:01:48]} 41. Qg6+ {[%emt 0:02:44]} Kd7 {[%emt 0:01:37]} 42. Qg4+ {[%emt 0:01:22]} Qe6 {[%emt 0:09:22]} 43. Qd1+ {[%emt 0:00:42]} Ke8 {[%emt 0:00:00]} 44. Qh5+ {[%emt 0:00:50]} Kf8 {[%emt 0:00:00]} 45. Rc5 {[%emt 0:00:55]} e3 {[%emt 0:00:00]} 46. Rf5+ {[%emt 0:00:19]} Kg8 {[%emt 0:00:00]} 47. Qg4+ {[%emt 0:00:57]} Rg7 {[%emt 0:00:00] [#]} 48. Rf8+ $3 {[%emt 0:00:05][%mdl 512] Weighted Error Value: White=0.42/Black=0.56} 1-0

[Event "1st Bella Italia International 2022"]
[Site "Lignano"]
[Date "2022.08.20"]
[Round "6.3"]
[White "Karthik Venkataraman"]
[Black "Loiacono, Leonardo"]
[Result "1-0"]
[ECO "C60"]
[WhiteElo "2483"]
[BlackElo "2291"]
[Annotator "TA"]
[PlyCount "91"]
[EventDate "2022.08.18"]
[EventCountry "ITA"]
[SourceTitle "playchess.com"]
[Source "ChessBase"]
[SourceQuality "1"]
[TimeControl "5400+30"]

{[%evp 14,91,41,32,33,33,33,41,43,40,44,0,0,0,-4,-15,0,-8,23,22,10,0,0,0,-5,-8,-3,-6,-8,-11,-5,-20,-20,0,-1,-4,0,4,89,90,124,125,129,129,138,138,125,122,122,123,164,155,160,121,229,206,283,273,328,339,316,316,339,337,482,473,474,488,479,470,509,494,1335,1314,1258,1258,1080,1041,800,779]} 1. e4 {[%emt 0:06:32]} e5 {[%emt 0:07:50]} 2. Nf3 {[%emt 0:00:06]} Nc6 {[%emt 0:00:04]} 3. Bb5 {[%emt 0:00:05]} a6 {[%emt 0:00:03]} 4. Ba4 {[%emt 0:00:04]} g6 {[%emt 0:00:04]} 5. c3 {[%emt 0:00:10]} Bg7 {[%emt 0:00:06]} 6. O-O {[%emt 0:00:05]} Nge7 {[%emt 0:00:05]} 7. d4 {[%emt 0:00:09]} exd4 {[%emt 0:00:05]} 8. cxd4 {[%emt 0:00:03]} b5 {[%emt 0:00:05] C60: Ruy Lopez: Unusual Black 3rd moves and 3...g6.} 9. Bc2 {[%emt 0:00:05]} d5 {[%emt 0:00:03]} 10. exd5 {[%emt 0:00:04]} Nb4 {[%emt 0:00:04] White is slightly better.} 11. Bb3 {[%emt 0:03:39] [#] Black must now prevent Re1.} Nbxd5 {[%emt 0:00:06]} 12. h3 {[%emt 0:00:24]} (12. Bg5 {looks sharper.} Qd6 13. Re1 O-O 14. Nc3) 12... O-O {[%emt 0:01:10]} 13. Re1 {[%emt 0:00:30] [#]} Bb7 $146 {[%emt 0:02:20]} ({Predecessor:} 13... Nf5 14. Nc3 Nxc3 15. bxc3 Bb7 16. Ba3 Nd6 17. Qd3 a5 18. Bc5 a4 19. Bc2 Qf6 {1-0 (27) Gopal,G (2565)-Havelka,J (2277) Pardubice 2016}) 14. Bg5 {[%emt 0:01:00] aiming for Bxd5.} Nf6 {[%emt 0:06:06]} 15. Nc3 {[%emt 0:08:04]} h6 {[%emt 0:02:11]} 16. Bxf6 {[%emt 0:02:18]} Bxf6 {[%emt 0:00:04]} 17. Ne4 {[%emt 0:00:56]} Nf5 {[%emt 0:07:41][%cal Rf6d4]} 18. Ne5 {[%emt 0:01:05] Threatens to win with Nxg6.} Bxe5 {[%emt 0:00:54]} 19. dxe5 {[%emt 0:00:07] Strongly threatening Nc5.} Bxe4 {[%emt 0:00:05]} 20. Rxe4 {[%emt 0:00:08]} Qxd1+ {[%emt 0:00:22]} 21. Rxd1 {[%emt 0:00:12]} c5 {[%emt 0:04:01]} 22. Bd5 {[%emt 0:11:03]} Rad8 {[%emt 0:01:33]} 23. e6 $36 {[%emt 0:00:11][%mdl 2048] White has good play.} fxe6 {[%emt 0:00:35]} 24. Rxe6 {[%emt 0:00:21]} Kg7 {[%emt 0:01:57]} 25. Rc6 {[%emt 0:08:52]} ({Much weaker is} 25. Rxa6 Nd4 26. Ra7+ Kf6 27. Ra6+ Kf5 $17) 25... Rc8 {[%emt 0:06:08]} (25... Rd6 $11) 26. Rxa6 $16 {[%emt 0:01:18]} Rfd8 {[%emt 0:00:04]} 27. Ra7+ {[%emt 0:04:03]} Kh8 {[%emt 0:01:47] [#]} 28. Kf1 $1 {[%emt 0:09:02] White is more active.} c4 {[%emt 0:02:53]} 29. Rb7 {[%emt 0:07:20]} Rc5 {[%emt 0:03:35]} 30. Bf3 {[%emt 0:00:09][%cal Rd1d8]} Rxd1+ {[%emt 0:00:39]} 31. Bxd1 {[%emt 0:00:04][%mdl 4096] Endgame KRB-KRN} Nd4 {[%emt 0:04:04]} 32. Rd7 {[%emt 0:00:48]} Ne6 {[%emt 0:02:02]} 33. Bc2 {[%emt 0:01:47]} b4 {[%emt 0:00:12]} (33... c3 $16) 34. Bxg6 {[%emt 0:01:53]} c3 {[%emt 0:00:31]} 35. bxc3 {[%emt 0:02:31]} bxc3 {[%emt 0:00:03]} 36. Bc2 {[%emt 0:00:46]} Nc7 {[%emt 0:01:46]} 37. Ke2 {[%emt 0:08:42]} Nd5 {[%emt 0:00:49]} 38. a3 {[%emt 0:00:04] Against Nb4} Ra5 {[%emt 0:01:33]} (38... h5 $142 39. Rf7 Rc6) 39. g3 $18 {[%emt 0:00:24] White is clearly winning.} Nf6 {[%emt 0:01:50]} 40. Rf7 {[%emt 0:01:16]} Ra6 {[%emt 0:01:08]} 41. Kd3 {[%emt 0:01:21]} Kg8 {[%emt 0:00:12]} 42. Bb3 {[%emt 0:05:06] Rxf6+ would kill now.} Rxa3 {[%emt 0:00:15]} (42... Rd6+ $142 43. Kxc3 Kh8) 43. Be6 {[%emt 0:02:03] Ra7+ is the strong threat.} Ra6 {[%emt 0:00:41]} 44. Rxf6+ {[%emt 0:00:08]} Kg7 {[%emt 0:00:05]} 45. Rf7+ {[%emt 0:00:05]} Kg6 {[%emt 0:00:05]} 46. Bc4 {[%emt 0:00:08] Weighted Error Value: White=0.04 (flawless) /Black=0.21 (precise)} 1-0